{"text_format":"1","workbook":"xlsx","n_sheets":2,"sheets":["Report","AG-Data"],"not_rendered":{"charts":0,"images":0,"macros":0,"external_links":0,"defined_names":0,"comments":1,"pivot_tables":0},"unopened":[],"bounds":{"document_bytes":16777216,"sheet_cells":100000,"rows_first":2000,"rows_last":500,"rows_between":2000,"halvings":0,"cell_chars":16384,"cell_head_chars":4096},"cells_cut":0,"cells_raw":0,"read":"whole","date_system":"1900"}

{"sheet":"Report","index":0,"n_rows":15,"n_cols":6,"rows_kept":15,"cut":false,"hidden":false,"merged":[]}
["Example Report Template"]
[]
["This is a basic example Report"]
[]
["1. Reproducibility (Coefficient of Variation)",null,null,null,null,{"$f":"IF(AND(C15<=0.05,D15<=0.05,E15<=0.05),\"PASS\",\"FAIL\")","v":"FAIL"}]
[]
[]
[null,null,"Exposure (mGy)","Energy (kVp)","Time (s)"]
[null,null,{"$f":"'AG-Data'!G7","v":0},{"$f":"'AG-Data'!E7","v":0},{"$f":"'AG-Data'!C7","v":0}]
[null,null,{"$f":"'AG-Data'!G8","v":0},{"$f":"'AG-Data'!E8","v":0},{"$f":"'AG-Data'!C8","v":0}]
[null,null,{"$f":"'AG-Data'!G9","v":0},{"$f":"'AG-Data'!E9","v":0},{"$f":"'AG-Data'!C9","v":0}]
[null,null,{"$f":"'AG-Data'!G10","v":0},{"$f":"'AG-Data'!E10","v":0},{"$f":"'AG-Data'!C10","v":0}]
["Mean Value:",null,{"$f":"IF(C9<>\"\",AVERAGE(C9:C12),\"\")","v":0},{"$f":"IF(D9<>\"\",AVERAGE(D9:D12),\"\")","v":0},{"$f":"IF(E9<>\"\",AVERAGE(E9:E12),\"\")","v":0}]
["Standard Deviation:",null,{"$f":"IF(C9<>\"\",STDEV(C9:C12),\"\")","v":0},{"$f":"IF(D9<>\"\",STDEV(D9:D12),\"\")","v":0},{"$f":"IF(E9<>\"\",STDEV(E9:E12),\"\")","v":0}]
["COV:",null,{"$f":"IF(C9<>0,C14/C13,\"n/a\")","v":"n/a"},{"$f":"IF(D9<>0,D14/D13,\"n/a\")","v":"n/a"},{"$f":"IF(E9<>0,E14/E13,\"n/a\")","v":"n/a"}]

{"sheet":"AG-Data","index":1,"n_rows":6,"n_cols":117,"rows_kept":6,"cut":false,"hidden":false,"merged":[]}
["Accu-Gold",null,"Diagnostic X-ray Measurement System by Radcal"]
["This is the AG-Data Sheet, where the measurement Data from Accu-Gold will be placed automatically (by the Excel-Link-Feature of the Accu-Gold 2 PC software)."]
["Version 1.0, compatible with Accu-Gold 2 since Version 2.37 Build 6"]
["agdata_001.000_standardexportformat"]
["Sensor:",null,null,null,"AGMS",null,"AGMS",null,"AGMS",null,"AGMS",null,null,null,null,null,null,null,null,null,null,null,null,null,null,null,null,"AGMS",null,"AGMS",null,"AGMS",null,"AGMS",null,"AGMS",null,"AGMS",null,"AGMS","AGMS","AGMS",null,null,"IC",null,null,null,"IC",null,"IC",null,"IC",null,"IC","IC","IC","IC",null,null,null,"DC",null,"DC",null,"DC",null,"DC",null,"DC","DC",null,"DD",null,"DD",null,"DD",null,"DD",null,"DD","DD","DD","mA",null,"mA",null,"Lum",null,"Lum",null,"DAPCheck+",null,"DAPCheck+",null,"DAPCheck+",null,"DAPCheck+","DAPCheck+",null,"AGMS",null,null,"AGMS","DD","IC","mA","Lum","DAPCheck+"]
["Original Index","Start Time","Duration","Duration Unit","kVp","kVp Unit","Dose","Dose Unit","Dose Rate","Dose Rate Unit","HVL","HVL Unit","Pulse Count","Comments","Connection Type","Typical Pulse Count","Pulse Frequency","Pulse Frequency Unit","Ave. Pulse Duration","Ave. Pulse Duration Unit","Pulse Duty Cycle","Pulse Rep. Period","Pulse Rep. Period Unit","Pre Pulse Duration","Pre Pulse Duration Unit","Trigger Level","Trigger Sensor","Calibration Description","Modality","Filtration","Filtration Unit","PPV","PPV Unit","Average kV","Average kV Unit","Dose / Pulse","Dose / Pulse Unit","Dose / mAs","Dose / mAs Unit","Dose / Total Dose","Dose Ratio AGMS / DD","Dose Ratio AGMS / IC","FWHM","FWHM2 Unit","Dose (IC)","Dose (IC) Unit","Dose Length Product","Dose Length Product Unit","Dose Rate (IC)","Dose Rate (IC) Unit","Dose / Pulse (IC)","Dose / Pulse (IC) Unit","Dose / mAs (IC)","Dose / mAs (IC) Unit","Dose / Total Dose (IC)","Dose Ratio IC / AGMS","Dose Ratio IC / DD","Temperature (IC)"," Temperature Unit","Air Pressure","Air Pressure Unit","DAP (DC)","DAP Unit","DAP Rate (DC)","DAP Rate (DC) Unit","DAP / Pulse (DC)","DAP / Pulse (DC) Unit","DAP / mAs (DC)","DAP / mAs (DC) Unit","DAP Rate DC / DAPCheck+","Temperature (DC)","Temperature (DC) Unit","Dose (DD)","Dose (DD) Unit","Dose Rate (DD)","Dose Rate (DD) Unit","Dose / Pulse (DD)","Dose / Pulse (DD) Unit","Dose / mAs (DD)","Dose / mAs (DD) Unit","Dose / Total Dose (DD)","Dose Ratio DD / AGMS","Dose Ratio DD / IC","Charge","Charge Unit","Current","Current Unit","Luminance","Luminance Unit","Illuminance","Illuminance Unit","DAP (DAPCheck+)","DAP Unit2","DAP Rate (DAPCheck+)","DAP Rate Unit","DAP / mAs (DAPCheck+)","DAP / mAs Unit","DAP Rate DAPCheck+ / DC","Temperature (DAPCheck+)","Temperature (DAPCheck+) Unit","Biased Average kV","Biased Average kV (Unit)","Serial","Serial (AGMS)","Serial (DD)","Serial (IC)","Serial (mA)","Serial (Lum)","Serial (DAPCheck+)","End Dose Rate"," ","End HVL","   ","End Filtration","  ","End Average kV","    "]